[Event "Late-Titled-Tuesday-Blitz-September-19-2023"]
[Site "Chess.com"]
[Date "2023.09.19"]
[Round "6"]
[White "nihalsarin"]
[Black "Sina_Movahed"]
[Result "1-0"]
[WhiteElo "3108"]
[BlackElo "2977"]
[TimeControl "180+1"]
[EndTime "15:06:05 PDT"]
[Termination "nihalsarin won by checkmate"]

1. e4 {[%clk 0:02:51.9]} 1... c5 {[%clk 0:02:59.4]} 2. Nf3 {[%clk 0:02:48.8]}
2... d6 {[%clk 0:02:59.1]} 3. Nc3 {[%clk 0:02:49.4]} 3... Nf6 {[%clk 0:02:58.9]}
4. d4 {[%clk 0:02:50]} 4... cxd4 {[%clk 0:02:59.8]} 5. Qxd4 {[%clk 0:02:50.7]}
5... Nc6 {[%clk 0:02:55.5]} 6. Qe3 {[%clk 0:02:51]} 6... g6 {[%clk 0:02:49.5]}
7. h3 {[%clk 0:02:51.1]} 7... Bg7 {[%clk 0:02:50]} 8. Bc4 {[%clk 0:02:51.9]}
8... O-O {[%clk 0:02:50.2]} 9. O-O {[%clk 0:02:52.7]} 9... Qb6 {[%clk
0:02:47.4]} 10. Qe2 {[%clk 0:02:49.4]} 10... Qa5 {[%clk 0:02:39.1]} 11. Rd1
{[%clk 0:02:47.4]} 11... Bd7 {[%clk 0:02:33.7]} 12. Bb3 {[%clk 0:02:24.3]} 12...
Rac8 {[%clk 0:02:31.3]} 13. Bg5 {[%clk 0:02:24.2]} 13... Ne5 {[%clk 0:02:28.4]}
14. Bxf6 {[%clk 0:02:09.6]} 14... Bxf6 {[%clk 0:02:27.5]} 15. Nd5 {[%clk
0:02:10.5]} 15... Bb5 {[%clk 0:02:00.6]} 16. Nxf6+ {[%clk 0:02:08.8]} 16... exf6
{[%clk 0:01:59.5]} 17. Qe3 {[%clk 0:02:09.5]} 17... Qc7 {[%clk 0:01:53]} 18. Nd4
{[%clk 0:02:06.1]} 18... Bc6 {[%clk 0:01:46.8]} 19. Qf4 {[%clk 0:01:52.8]} 19...
Qe7 {[%clk 0:01:43.4]} 20. Re1 {[%clk 0:01:49]} 20... Bd7 {[%clk 0:01:41.2]} 21.
Rad1 {[%clk 0:01:47.6]} 21... Rc5 {[%clk 0:01:33.8]} 22. Qg3 {[%clk 0:01:43.9]}
22... Kh8 {[%clk 0:01:28.1]} 23. Ne2 {[%clk 0:01:39]} 23... a5 {[%clk
0:01:25.3]} 24. Nc3 {[%clk 0:01:34.6]} 24... Be6 {[%clk 0:01:18.8]} 25. f4
{[%clk 0:01:28.5]} 25... Nc4 {[%clk 0:01:14]} 26. f5 {[%clk 0:01:23.3]} 26...
Bc8 {[%clk 0:01:08.6]} 27. Bxc4 {[%clk 0:01:17.5]} 27... Rxc4 {[%clk 0:01:07.8]}
28. Qxd6 {[%clk 0:01:16.5]} 28... Qxd6 {[%clk 0:01:04.6]} 29. Rxd6 {[%clk
0:01:17.4]} 29... gxf5 {[%clk 0:01:02.8]} 30. Rxf6 {[%clk 0:01:14.6]} 30... fxe4
{[%clk 0:01:01.1]} 31. Rxe4 {[%clk 0:01:14]} 31... Rxe4 {[%clk 0:00:59.9]} 32.
Nxe4 {[%clk 0:01:14.9]} 32... Be6 {[%clk 0:00:59.7]} 33. a3 {[%clk 0:01:05.1]}
33... Rc8 {[%clk 0:00:54.2]} 34. c3 {[%clk 0:01:04.2]} 34... Kg7 {[%clk
0:00:47.4]} 35. Rf2 {[%clk 0:01:04.2]} 35... b6 {[%clk 0:00:43.3]} 36. Rd2
{[%clk 0:01:03.1]} 36... Rc4 {[%clk 0:00:41.4]} 37. Nd6 {[%clk 0:01:03.1]} 37...
Rh4 {[%clk 0:00:35.6]} 38. Kf2 {[%clk 0:01:02.8]} 38... Kf8 {[%clk 0:00:27.1]}
39. Nb5 {[%clk 0:00:49.1]} 39... Ke7 {[%clk 0:00:25.4]} 40. Nd4 {[%clk
0:00:49.8]} 40... Rh5 {[%clk 0:00:24.6]} 41. Nc6+ {[%clk 0:00:43.1]} 41... Kf6
{[%clk 0:00:23.7]} 42. Rd6 {[%clk 0:00:43.8]} 42... Rf5+ {[%clk 0:00:20.9]} 43.
Kg1 {[%clk 0:00:27.5]} 43... Rd5 {[%clk 0:00:19.5]} 44. Rxd5 {[%clk 0:00:27.7]}
44... Bxd5 {[%clk 0:00:19.6]} 45. Nd4 {[%clk 0:00:28.6]} 45... Ke5 {[%clk
0:00:20]} 46. Kf2 {[%clk 0:00:29.3]} 46... Ke4 {[%clk 0:00:20.3]} 47. Ke2 {[%clk
0:00:25]} 47... Bc4+ {[%clk 0:00:20.6]} 48. Kd2 {[%clk 0:00:25.1]} 48... Bf1
{[%clk 0:00:21.1]} 49. g3 {[%clk 0:00:17.9]} 49... Bxh3 {[%clk 0:00:20.6]} 50.
Nb5 {[%clk 0:00:18.7]} 50... Be6 {[%clk 0:00:19.3]} 51. b4 {[%clk 0:00:16.3]}
51... axb4 {[%clk 0:00:17.1]} 52. cxb4 {[%clk 0:00:17]} 52... Kf3 {[%clk
0:00:15.5]} 53. Nd4+ {[%clk 0:00:16.9]} 53... Ke4 {[%clk 0:00:12.2]} 54. Nxe6
{[%clk 0:00:14.4]} 54... fxe6 {[%clk 0:00:13.1]} 55. a4 {[%clk 0:00:10.6]} 55...
Kd5 {[%clk 0:00:12.5]} 56. Kd3 {[%clk 0:00:10.6]} 56... h5 {[%clk 0:00:09.4]}
57. a5 {[%clk 0:00:08.6]} 57... bxa5 {[%clk 0:00:10.3]} 58. bxa5 {[%clk
0:00:09.5]} 58... Kc5 {[%clk 0:00:10.5]} 59. Ke4 {[%clk 0:00:10.3]} 59... Kb5
{[%clk 0:00:10.9]} 60. Ke5 {[%clk 0:00:11.1]} 60... Kxa5 {[%clk 0:00:11.5]} 61.
Kxe6 {[%clk 0:00:11.9]} 61... Kb6 {[%clk 0:00:10.5]} 62. Kf6 {[%clk 0:00:12.6]}
62... Kc7 {[%clk 0:00:11]} 63. Kg6 {[%clk 0:00:13.3]} 63... Kd7 {[%clk
0:00:11.4]} 64. Kxh5 {[%clk 0:00:13.4]} 64... Ke7 {[%clk 0:00:11.7]} 65. Kg6
{[%clk 0:00:13.8]} 65... Kf8 {[%clk 0:00:12.6]} 66. g4 {[%clk 0:00:12.9]} 66...
Kg8 {[%clk 0:00:13.1]} 67. g5 {[%clk 0:00:13.6]} 67... Kh8 {[%clk 0:00:11.9]}
68. Kh6 {[%clk 0:00:14.3]} 68... Kg8 {[%clk 0:00:11.8]} 69. Kg6 {[%clk
0:00:12.4]} 69... Kh8 {[%clk 0:00:11.2]} 70. Kf7 {[%clk 0:00:12.4]} 70... Kh7
{[%clk 0:00:11.8]} 71. g6+ {[%clk 0:00:13.3]} 71... Kh8 {[%clk 0:00:10.9]} 72.
g7+ {[%clk 0:00:14.2]} 72... Kh7 {[%clk 0:00:11.3]} 73. g8=Q+ {[%clk 0:00:15.1]}
73... Kh6 {[%clk 0:00:11.2]} 74. Qg6# {[%clk 0:00:16]} 1-0

[Event "Late-Titled-Tuesday-Blitz-September-19-2023"]
[Site "Chess.com"]
[Date "2023.09.19"]
[Round "6"]
[White "jaskol95"]
[Black "ArtemDyachuk"]
[Result "0-1"]
[WhiteElo "2546"]
[BlackElo "2711"]
[TimeControl "180+1"]
[EndTime "15:06:15 PDT"]
[Termination "ArtemDyachuk won by checkmate"]

1. e4 {[%clk 0:03:00.9]} 1... c5 {[%clk 0:02:58.9]} 2. Nf3 {[%clk 0:03:01.2]}
2... d6 {[%clk 0:02:58.9]} 3. Bb5+ {[%clk 0:02:59.3]} 3... Nd7 {[%clk
0:02:58.2]} 4. a4 {[%clk 0:02:59.3]} 4... g6 {[%clk 0:02:57.3]} 5. a5 {[%clk
0:02:49.1]} 5... a6 {[%clk 0:02:55.4]} 6. Bc4 {[%clk 0:02:49.6]} 6... Bg7 {[%clk
0:02:54.9]} 7. Nc3 {[%clk 0:02:50]} 7... Ngf6 {[%clk 0:02:53.9]} 8. Bxf7+ {[%clk
0:02:50.1]} 8... Kxf7 {[%clk 0:02:50.4]} 9. Ng5+ {[%clk 0:02:50.3]} 9... Kg8
{[%clk 0:02:50.4]} 10. Ne6 {[%clk 0:02:50.6]} 10... Qe8 {[%clk 0:02:49.9]} 11.
Nc7 {[%clk 0:02:51.3]} 11... Qf7 {[%clk 0:02:49.6]} 12. Nxa8 {[%clk 0:02:51.2]}
12... h5 {[%clk 0:02:37.3]} 13. d3 {[%clk 0:02:44.3]} 13... Ne5 {[%clk
0:02:30.9]} 14. Nb6 {[%clk 0:02:41.2]} 14... Be6 {[%clk 0:02:23.5]} 15. O-O
{[%clk 0:02:39.5]} 15... h4 {[%clk 0:02:22.6]} 16. f4 {[%clk 0:02:29.4]} 16...
Bg4 {[%clk 0:01:47.2]} 17. Qe1 {[%clk 0:01:57.4]} 17... Nc6 {[%clk 0:01:46.4]}
18. h3 {[%clk 0:01:45.8]} 18... Nd4 {[%clk 0:01:06.4]} 19. Qf2 {[%clk
0:01:26.9]} 19... Be6 {[%clk 0:01:01.7]} 20. Kh2 {[%clk 0:00:39.5]} 20... Nh5
{[%clk 0:00:59.7]} 21. Nbd5 {[%clk 0:00:20]} 21... Ng3 {[%clk 0:00:58.1]} 22.
Re1 {[%clk 0:00:17.2]} 22... Bd7 {[%clk 0:00:50.6]} 23. Be3 {[%clk 0:00:16.5]}
23... e6 {[%clk 0:00:48.1]} 24. Nb6 {[%clk 0:00:16.2]} 24... Bc6 {[%clk
0:00:48]} 25. Bxd4 {[%clk 0:00:13]} 25... Bxd4 {[%clk 0:00:47.4]} 26. Qf3 {[%clk
0:00:13.7]} 26... Kg7 {[%clk 0:00:40.2]} 27. Nc4 {[%clk 0:00:13.6]} 27... Qe7
{[%clk 0:00:39.2]} 28. Qg4 {[%clk 0:00:12.8]} 28... Rh5 {[%clk 0:00:34]} 29. f5
{[%clk 0:00:12.3]} 29... Rg5 {[%clk 0:00:28.6]} 30. Qxh4 {[%clk 0:00:10.1]}
30... Nf1+ {[%clk 0:00:22.4]} 31. Kh1 {[%clk 0:00:09.7]} 31... Ng3+ {[%clk
0:00:20.9]} 32. Kh2 {[%clk 0:00:10.2]} 32... Nf1+ {[%clk 0:00:08.5]} 33. Rxf1
{[%clk 0:00:10.9]} 33... Rxg2+ {[%clk 0:00:07.9]} 34. Kxg2 {[%clk 0:00:11.8]}
34... Qxh4 {[%clk 0:00:08.3]} 35. fxe6 {[%clk 0:00:11.1]} 35... Qg5+ {[%clk
0:00:07.7]} 36. Kh2 {[%clk 0:00:11.6]} 36... Bb5 {[%clk 0:00:05]} 37. Nd5 {[%clk
0:00:05.9]} 37... Bxc4 {[%clk 0:00:03.6]} 38. dxc4 {[%clk 0:00:06.8]} 38... Be5+
{[%clk 0:00:04.2]} 39. Kh1 {[%clk 0:00:07.3]} 39... Qg3 {[%clk 0:00:04.4]} 40.
Nf4 {[%clk 0:00:04.5]} 40... Bxf4 {[%clk 0:00:04.2]} 41. Rxf4 {[%clk 0:00:05]}
41... Qxf4 {[%clk 0:00:04.4]} 42. Re1 {[%clk 0:00:04.9]} 42... Qe5 {[%clk
0:00:03.8]} 43. Kg2 {[%clk 0:00:05.1]} 43... Qxe6 {[%clk 0:00:04.1]} 44. b3
{[%clk 0:00:05.3]} 44... Qe5 {[%clk 0:00:04.3]} 45. Kf3 {[%clk 0:00:05.5]} 45...
Qf6+ {[%clk 0:00:04.3]} 46. Ke2 {[%clk 0:00:05.5]} 46... Qc3 {[%clk 0:00:04.3]}
47. Kd1 {[%clk 0:00:05.5]} 47... Qxh3 {[%clk 0:00:03.9]} 48. Kd2 {[%clk
0:00:05.8]} 48... Qg2+ {[%clk 0:00:03.7]} 49. Re2 {[%clk 0:00:06.1]} 49... Qg5+
{[%clk 0:00:04.1]} 50. Kd3 {[%clk 0:00:06.4]} 50... Qe5 {[%clk 0:00:04.4]} 51.
c3 {[%clk 0:00:06.6]} 51... g5 {[%clk 0:00:04.8]} 52. b4 {[%clk 0:00:07.2]}
52... g4 {[%clk 0:00:04.4]} 53. b5 {[%clk 0:00:07.7]} 53... g3 {[%clk
0:00:03.4]} 54. Ke3 {[%clk 0:00:08.2]} 54... Qxc3+ {[%clk 0:00:03.1]} 55. Kf4
{[%clk 0:00:08.9]} 55... Kf6 {[%clk 0:00:03.3]} 56. Rg2 {[%clk 0:00:08.2]} 56...
Qxc4 {[%clk 0:00:03.5]} 57. Rxg3 {[%clk 0:00:08.5]} 57... d5 {[%clk 0:00:03.2]}
58. Re3 {[%clk 0:00:07.2]} 58... axb5 {[%clk 0:00:03.1]} 59. a6 {[%clk
0:00:06.9]} 59... bxa6 {[%clk 0:00:03]} 60. Kf3 {[%clk 0:00:07.6]} 60... dxe4+
{[%clk 0:00:02.9]} 61. Kf4 {[%clk 0:00:07.9]} 61... Qd4 {[%clk 0:00:02.3]} 62.
Rg3 {[%clk 0:00:08.1]} 62... Qe5+ {[%clk 0:00:02.4]} 63. Kg4 {[%clk 0:00:07.8]}
63... Qxg3+ {[%clk 0:00:03.3]} 64. Kxg3 {[%clk 0:00:07.6]} 64... Ke5 {[%clk
0:00:04.2]} 65. Kf2 {[%clk 0:00:08.1]} 65... a5 {[%clk 0:00:05.1]} 66. Ke2
{[%clk 0:00:08.8]} 66... a4 {[%clk 0:00:05.8]} 67. Kd2 {[%clk 0:00:09.5]} 67...
a3 {[%clk 0:00:06.2]} 68. Kc3 {[%clk 0:00:10.4]} 68... b4+ {[%clk 0:00:06.6]}
69. Kb3 {[%clk 0:00:10.9]} 69... e3 {[%clk 0:00:07]} 70. Kc2 {[%clk 0:00:11.4]}
70... Kd4 {[%clk 0:00:07.1]} 71. Kb3 {[%clk 0:00:11.9]} 71... e2 {[%clk
0:00:07]} 72. Kc2 {[%clk 0:00:12.2]} 72... e1=Q {[%clk 0:00:07.4]} 73. Kb3
{[%clk 0:00:13.1]} 73... Qc3+ {[%clk 0:00:07.2]} 74. Ka4 {[%clk 0:00:12.9]}
74... a2 {[%clk 0:00:07.4]} 75. Kb5 {[%clk 0:00:13.1]} 75... a1=Q {[%clk
0:00:07.9]} 76. Kb6 {[%clk 0:00:13.5]} 76... Kd3 {[%clk 0:00:08.1]} 77. Kb5
{[%clk 0:00:14]} 77... c4 {[%clk 0:00:08.1]} 78. Kc5 {[%clk 0:00:14.4]} 78...
Kd2 {[%clk 0:00:08.4]} 79. Kd5 {[%clk 0:00:14.4]} 79... Qc2 {[%clk 0:00:08.1]}
80. Kc5 {[%clk 0:00:13.7]} 80... b3 {[%clk 0:00:07.7]} 81. Kb4 {[%clk
0:00:14.3]} 81... b2 {[%clk 0:00:07.6]} 82. Kc5 {[%clk 0:00:14.9]} 82... b1=Q
{[%clk 0:00:08.2]} 83. Kd5 {[%clk 0:00:15.6]} 83... c3 {[%clk 0:00:08.1]} 84.
Ke5 {[%clk 0:00:15.8]} 84... Qcd1 {[%clk 0:00:08.4]} 85. Kf4 {[%clk 0:00:16.7]}
85... c2 {[%clk 0:00:09.2]} 86. Kg3 {[%clk 0:00:16.4]} 86... c1=Q {[%clk
0:00:10.1]} 87. Kf2 {[%clk 0:00:17.1]} 87... Qg1+ {[%clk 0:00:09.8]} 88. Kf3
{[%clk 0:00:17.5]} 88... Qf5# {[%clk 0:00:10.1]} 0-1

[Event "Late-Titled-Tuesday-Blitz-September-19-2023"]
[Site "Chess.com"]
[Date "2023.09.19"]
[Round "6"]
[White "zsoltkorpics"]
[Black "Verony64"]
[Result "1/2-1/2"]
[WhiteElo "2349"]
[BlackElo "2260"]
[TimeControl "180+1"]
[EndTime "15:06:15 PDT"]
[Termination "Game drawn - insufficient material"]

1. e4 {[%clk 0:03:00.9]} 1... e5 {[%clk 0:02:58.6]} 2. Nf3 {[%clk 0:03:00.9]}
2... d6 {[%clk 0:02:58.8]} 3. d4 {[%clk 0:03:00]} 3... Nd7 {[%clk 0:02:58.4]} 4.
Nc3 {[%clk 0:02:58.8]} 4... c6 {[%clk 0:02:58]} 5. Be3 {[%clk 0:02:56.1]} 5...
Be7 {[%clk 0:02:58.1]} 6. h3 {[%clk 0:02:53.2]} 6... Ngf6 {[%clk 0:02:58]} 7. g4
{[%clk 0:02:43.9]} 7... g6 {[%clk 0:02:40.3]} 8. Be2 {[%clk 0:02:31.3]} 8... Qc7
{[%clk 0:02:40.3]} 9. Ng5 {[%clk 0:02:10.9]} 9... h6 {[%clk 0:02:18.7]} 10. Nf3
{[%clk 0:02:10.5]} 10... b5 {[%clk 0:02:18.4]} 11. a3 {[%clk 0:02:09.6]} 11...
a5 {[%clk 0:02:16.6]} 12. g5 {[%clk 0:02:07.4]} 12... hxg5 {[%clk 0:02:15.5]}
13. Nxg5 {[%clk 0:02:08.3]} 13... Nh5 {[%clk 0:02:09.1]} 14. Bxh5 {[%clk
0:01:49]} 14... Rxh5 {[%clk 0:02:08]} 15. h4 {[%clk 0:01:46]} 15... Nf6 {[%clk
0:02:02]} 16. f3 {[%clk 0:01:34]} 16... Bd7 {[%clk 0:01:49.3]} 17. Qe2 {[%clk
0:01:29.8]} 17... Bf8 {[%clk 0:01:37.8]} 18. f4 {[%clk 0:01:18.7]} 18... Ng4
{[%clk 0:01:22.2]} 19. fxe5 {[%clk 0:01:10.7]} 19... dxe5 {[%clk 0:01:17.3]} 20.
O-O-O {[%clk 0:01:08.3]} 20... Nxe3 {[%clk 0:01:08.7]} 21. Qxe3 {[%clk
0:01:07.2]} 21... b4 {[%clk 0:00:54.1]} 22. axb4 {[%clk 0:01:04.3]} 22... axb4
{[%clk 0:00:55]} 23. Nb1 {[%clk 0:01:04.1]} 23... Bh6 {[%clk 0:00:33.2]} 24. b3
{[%clk 0:00:37.1]} 24... O-O-O {[%clk 0:00:31.5]} 25. d5 {[%clk 0:00:31.1]}
25... Bg4 {[%clk 0:00:27.1]} 26. Rd2 {[%clk 0:00:25.6]} 26... cxd5 {[%clk
0:00:19.2]} 27. Rxd5 {[%clk 0:00:18.7]} 27... Rxd5 {[%clk 0:00:18.6]} 28. exd5
{[%clk 0:00:19.6]} 28... Bf5 {[%clk 0:00:18.5]} 29. Rh2 {[%clk 0:00:14.7]} 29...
Bxg5 {[%clk 0:00:18.2]} 30. hxg5 {[%clk 0:00:11.2]} 30... Rxh2 {[%clk
0:00:18.2]} 31. Nd2 {[%clk 0:00:11.5]} 31... Kd7 {[%clk 0:00:15.3]} 32. Nc4
{[%clk 0:00:10.2]} 32... Rh1+ {[%clk 0:00:13.7]} 33. Kb2 {[%clk 0:00:10.2]}
33... Rh4 {[%clk 0:00:11.3]} 34. Nxe5+ {[%clk 0:00:10]} 34... Kc8 {[%clk
0:00:10.9]} 35. Nc4 {[%clk 0:00:06.5]} 35... Re4 {[%clk 0:00:10.9]} 36. Qd2
{[%clk 0:00:02.7]} 36... Qc5 {[%clk 0:00:11.4]} 37. d6 {[%clk 0:00:02.7]} 37...
Qd4+ {[%clk 0:00:11.6]} 38. Qxd4 {[%clk 0:00:02.7]} 38... Rxd4 {[%clk
0:00:12.5]} 39. c3 {[%clk 0:00:03.2]} 39... Rg4 {[%clk 0:00:12.6]} 40. cxb4
{[%clk 0:00:03.4]} 40... Rxg5 {[%clk 0:00:13.5]} 41. b5 {[%clk 0:00:03.6]} 41...
Rg2+ {[%clk 0:00:13.5]} 42. Ka3 {[%clk 0:00:03.4]} 42... Kd7 {[%clk 0:00:14]}
43. b6 {[%clk 0:00:03.8]} 43... Be4 {[%clk 0:00:14.6]} 44. Kb4 {[%clk
0:00:03.6]} 44... Rg4 {[%clk 0:00:14.1]} 45. Kc5 {[%clk 0:00:03.8]} 45... Bb7
{[%clk 0:00:15]} 46. Na5 {[%clk 0:00:03.7]} 46... Rg5+ {[%clk 0:00:15.9]} 47.
Kb4 {[%clk 0:00:04.1]} 47... Kxd6 {[%clk 0:00:15.7]} 48. Nxb7+ {[%clk
0:00:04.1]} 48... Kc6 {[%clk 0:00:16.6]} 49. Nd8+ {[%clk 0:00:03.4]} 49... Kxb6
{[%clk 0:00:17.5]} 50. Nxf7 {[%clk 0:00:04.2]} 50... Rg4+ {[%clk 0:00:18]} 51.
Kc3 {[%clk 0:00:04.2]} 51... Rf4 {[%clk 0:00:18.9]} 52. Ne5 {[%clk 0:00:04]}
52... g5 {[%clk 0:00:19.1]} 53. Nd3 {[%clk 0:00:04]} 53... Rf3 {[%clk
0:00:19.2]} 54. Kd4 {[%clk 0:00:04.7]} 54... g4 {[%clk 0:00:19.7]} 55. Ke4
{[%clk 0:00:05.4]} 55... Rf1 {[%clk 0:00:20]} 56. Ke3 {[%clk 0:00:04.7]} 56...
Rb1 {[%clk 0:00:20.9]} 57. Nf2 {[%clk 0:00:04.7]} 57... Rxb3+ {[%clk 0:00:21.5]}
58. Kf4 {[%clk 0:00:05.3]} 58... Rb4+ {[%clk 0:00:22]} 59. Kg3 {[%clk
0:00:05.4]} 59... Kc5 {[%clk 0:00:22.9]} 60. Nxg4 {[%clk 0:00:05.5]} 60... Rb3+
{[%clk 0:00:23.8]} 61. Kf4 {[%clk 0:00:05.7]} 61... Kc4 {[%clk 0:00:24.4]} 62.
Ne5+ {[%clk 0:00:05.6]} 62... Kc3 {[%clk 0:00:24.7]} 63. Nf3 {[%clk 0:00:05.8]}
63... Rb4+ {[%clk 0:00:25.6]} 64. Ke3 {[%clk 0:00:06.1]} 64... Kb3 {[%clk
0:00:26.2]} 65. Nd4+ {[%clk 0:00:05.4]} 65... Ka4 {[%clk 0:00:26.1]} 66. Ne2
{[%clk 0:00:05.9]} 66... Kb5 {[%clk 0:00:26.2]} 67. Kd3 {[%clk 0:00:06.6]} 67...
Kc5 {[%clk 0:00:26.3]} 68. Nc3 {[%clk 0:00:06.9]} 68... Rd4+ {[%clk 0:00:26.4]}
69. Kc2 {[%clk 0:00:06.7]} 69... Kc4 {[%clk 0:00:27.3]} 70. Nd1 {[%clk
0:00:06.9]} 70... Rh4 {[%clk 0:00:27.4]} 71. Nb2+ {[%clk 0:00:06.9]} 71... Kb4
{[%clk 0:00:27.6]} 72. Nd3+ {[%clk 0:00:07.3]} 72... Kc4 {[%clk 0:00:27.8]} 73.
Nb2+ {[%clk 0:00:07.9]} 73... Kd4 {[%clk 0:00:28.7]} 74. Kb3 {[%clk 0:00:08.4]}
74... Rh3+ {[%clk 0:00:28.3]} 75. Kb4 {[%clk 0:00:08.8]} 75... Rh2 {[%clk
0:00:28.7]} 76. Nc4 {[%clk 0:00:08.7]} 76... Rh8 {[%clk 0:00:28.2]} 77. Na5
{[%clk 0:00:06.6]} 77... Rb8+ {[%clk 0:00:29.1]} 78. Ka4 {[%clk 0:00:06.7]}
78... Kc5 {[%clk 0:00:29.2]} 79. Nb3+ {[%clk 0:00:06.5]} 79... Kc4 {[%clk
0:00:29.6]} 80. Na5+ {[%clk 0:00:06.3]} 80... Kc5 {[%clk 0:00:29.2]} 81. Nb3+
{[%clk 0:00:06.3]} 81... Kc6 {[%clk 0:00:30.1]} 82. Na5+ {[%clk 0:00:06.1]}
82... Kd5 {[%clk 0:00:29]} 83. Nb3 {[%clk 0:00:05.2]} 83... Kc4 {[%clk
0:00:29.9]} 84. Na5+ {[%clk 0:00:05.3]} 84... Kc3 {[%clk 0:00:30.3]} 85. Nc6
{[%clk 0:00:05.9]} 85... Rb6 {[%clk 0:00:30.2]} 86. Na5 {[%clk 0:00:06]} 86...
Rb2 {[%clk 0:00:29.2]} 87. Nc6 {[%clk 0:00:04.9]} 87... Ra2+ {[%clk 0:00:27.5]}
88. Kb5 {[%clk 0:00:05]} 88... Ra8 {[%clk 0:00:27.1]} 89. Kc5 {[%clk 0:00:05]}
89... Rc8 {[%clk 0:00:26.8]} 90. Kd6 {[%clk 0:00:05.1]} 90... Kc4 {[%clk
0:00:26.9]} 91. Kd7 {[%clk 0:00:05.2]} 91... Kb5 {[%clk 0:00:27.8]} 92. Kxc8
{[%clk 0:00:05.2]} 1/2-1/2

[Event "Late-Titled-Tuesday-Blitz-September-19-2023"]
[Site "Chess.com"]
[Date "2023.09.19"]
[Round "6"]
[White "pirulillo"]
[Black "DefiantChair"]
[Result "0-1"]
[WhiteElo "2378"]
[BlackElo "2591"]
[TimeControl "180+1"]
[EndTime "15:06:16 PDT"]
[Termination "DefiantChair won by resignation"]

1. e4 {[%clk 0:02:56.8]} 1... c5 {[%clk 0:02:58.1]} 2. Nf3 {[%clk 0:02:46.4]}
2... d6 {[%clk 0:02:56.2]} 3. d4 {[%clk 0:02:46.4]} 3... cxd4 {[%clk 0:02:57.1]}
4. Nxd4 {[%clk 0:02:47.2]} 4... Nf6 {[%clk 0:02:57.1]} 5. Nc3 {[%clk 0:02:47.8]}
5... a6 {[%clk 0:02:57.2]} 6. Be2 {[%clk 0:02:48.2]} 6... e5 {[%clk 0:02:55.2]}
7. Nb3 {[%clk 0:02:48.7]} 7... Be7 {[%clk 0:02:55.2]} 8. Be3 {[%clk 0:02:49.3]}
8... Be6 {[%clk 0:02:54.8]} 9. Nd5 {[%clk 0:02:49.9]} 9... Nbd7 {[%clk
0:02:54.7]} 10. Qd3 {[%clk 0:02:48.9]} 10... O-O {[%clk 0:02:53.5]} 11. c4
{[%clk 0:02:46.4]} 11... b5 {[%clk 0:02:52.9]} 12. cxb5 {[%clk 0:02:44]} 12...
Bxd5 {[%clk 0:02:39.3]} 13. exd5 {[%clk 0:02:43.2]} 13... Nb6 {[%clk 0:02:04.3]}
14. Bxb6 {[%clk 0:02:27.9]} 14... Qxb6 {[%clk 0:02:05.2]} 15. bxa6 {[%clk
0:02:22.1]} 15... Qb4+ {[%clk 0:01:58.6]} 16. Qd2 {[%clk 0:02:16.1]} 16... Qxd2+
{[%clk 0:01:58.3]} 17. Kxd2 {[%clk 0:02:01.8]} 17... Nxd5 {[%clk 0:01:53.2]} 18.
Bf3 {[%clk 0:01:55.5]} 18... Bg5+ {[%clk 0:01:52.8]} 19. Kd1 {[%clk 0:01:49.6]}
19... Nb4 {[%clk 0:01:45.4]} 20. Bxa8 {[%clk 0:01:45.5]} 20... Rxa8 {[%clk
0:01:46.3]} 21. h4 {[%clk 0:01:39.2]} 21... Bh6 {[%clk 0:01:44.4]} 22. Rh3
{[%clk 0:01:38.9]} 22... Rxa6 {[%clk 0:01:39.5]} 23. a3 {[%clk 0:01:38.9]} 23...
Nd5 {[%clk 0:01:37.5]} 24. Rd3 {[%clk 0:01:35.7]} 24... Nf4 {[%clk 0:01:33.8]}
25. Rc3 {[%clk 0:01:35.7]} 25... g6 {[%clk 0:01:33.4]} 26. g3 {[%clk 0:01:35]}
26... Ne6 {[%clk 0:01:32.3]} 27. Ke2 {[%clk 0:01:26.6]} 27... f5 {[%clk
0:01:26.2]} 28. Rd1 {[%clk 0:01:24.7]} 28... Kf7 {[%clk 0:01:24.9]} 29. Rcd3
{[%clk 0:01:18.9]} 29... Ke7 {[%clk 0:01:23.7]} 30. Nc1 {[%clk 0:01:03.5]} 30...
Bg7 {[%clk 0:01:12.7]} 31. b4 {[%clk 0:01:01.2]} 31... e4 {[%clk 0:01:04.3]} 32.
Rb3 {[%clk 0:00:57.7]} 32... Nd4+ {[%clk 0:01:02.1]} 33. Rxd4 {[%clk 0:00:58.1]}
33... Bxd4 {[%clk 0:01:01.7]} 34. b5 {[%clk 0:00:57.3]} 34... Ra4 {[%clk
0:00:53.8]} 35. b6 {[%clk 0:00:56.1]} 35... Rc4 {[%clk 0:00:42.7]} 36. b7 {[%clk
0:00:53.7]} 36... Ba7 {[%clk 0:00:42]} 37. Kd1 {[%clk 0:00:38]} 37... Bb8 {[%clk
0:00:40.6]} 38. Na2 {[%clk 0:00:34.5]} 38... d5 {[%clk 0:00:36.9]} 39. Nb4
{[%clk 0:00:34.6]} 39... Kd6 {[%clk 0:00:12.2]} 40. Na6 {[%clk 0:00:33.3]} 40...
Ba7 {[%clk 0:00:12.8]} 41. b8=Q+ {[%clk 0:00:32.8]} 41... Bxb8 {[%clk
0:00:13.1]} 42. Nxb8 {[%clk 0:00:31.1]} 42... Ra4 {[%clk 0:00:12.6]} 43. Kd2
{[%clk 0:00:29.5]} 43... d4 {[%clk 0:00:12.9]} 44. Kc2 {[%clk 0:00:29.3]} 44...
h6 {[%clk 0:00:11.5]} 45. Kb2 {[%clk 0:00:29.3]} 45... d3 {[%clk 0:00:11.6]} 46.
Rb4 {[%clk 0:00:28.2]} 46... Ra5 {[%clk 0:00:11.2]} 47. a4 {[%clk 0:00:25.5]}
47... Rc5 {[%clk 0:00:10.7]} 48. Ka3 {[%clk 0:00:23.3]} 48... Rc2 {[%clk
0:00:09.8]} 49. Kb3 {[%clk 0:00:21.3]} 49... Rxf2 {[%clk 0:00:09.8]} 50. a5
{[%clk 0:00:21.4]} 50... d2 {[%clk 0:00:10.3]} 51. Rd4+ {[%clk 0:00:21.3]} 51...
Kc5 {[%clk 0:00:08.7]} 52. Rd8 {[%clk 0:00:21.8]} 52... e3 {[%clk 0:00:08.6]}
53. Kc2 {[%clk 0:00:21.6]} 53... Rf1 {[%clk 0:00:08.6]} 54. a6 {[%clk
0:00:20.5]} 54... Rc1+ {[%clk 0:00:08.7]} 55. Kb2 {[%clk 0:00:20.1]} 55... d1=Q
{[%clk 0:00:09.1]} 56. Rxd1 {[%clk 0:00:20.3]} 56... Rxd1 {[%clk 0:00:10]} 57.
a7 {[%clk 0:00:20.7]} 57... e2 {[%clk 0:00:10.5]} 58. a8=Q {[%clk 0:00:20.6]}
58... e1=Q {[%clk 0:00:10.9]} 59. Qc6+ {[%clk 0:00:19.3]} 59... Kd4 {[%clk
0:00:10.8]} 60. Qb6+ {[%clk 0:00:18.3]} 60... Ke4 {[%clk 0:00:10.8]} 61. Qb7+
{[%clk 0:00:17.9]} 61... Ke3 {[%clk 0:00:11]} 62. Qb6+ {[%clk 0:00:18.3]} 62...
Kf3 {[%clk 0:00:11.2]} 63. Qb7+ {[%clk 0:00:18.3]} 63... Kxg3 {[%clk 0:00:11.3]}
64. Qc7+ {[%clk 0:00:18.3]} 64... Kh3 {[%clk 0:00:10.6]} 65. Nc6 {[%clk
0:00:18.5]} 65... Qe2+ {[%clk 0:00:10.2]} 66. Kb3 {[%clk 0:00:18.5]} 66... Rb1+
{[%clk 0:00:10.4]} 67. Kc3 {[%clk 0:00:17]} 67... Qb2+ {[%clk 0:00:10]} 68. Kc4
{[%clk 0:00:17.1]} 68... Rc1+ {[%clk 0:00:10.4]} 69. Kd5 {[%clk 0:00:17.6]}
69... Qb5+ {[%clk 0:00:10.2]} 70. Kd6 {[%clk 0:00:16.9]} 70... Qxc6+ {[%clk
0:00:09.7]} 71. Qxc6 {[%clk 0:00:17.8]} 71... Rxc6+ {[%clk 0:00:10.4]} 72. Kxc6
{[%clk 0:00:18.7]} 72... f4 {[%clk 0:00:11]} 0-1